Cogmind - Beta 14 @@@ ROGUE MODE // 2024.10.08 @ 22:08:44 Player: puppuppit Result: Destroyed self with Grenade Launcher Performance ------------- Evolutions (0) 0 Regions Visited (3) 600 Robots Destroyed (57) 285 Value Destroyed (777) 777 Prototype IDs (6) 120 Alien Tech Used (0) 0 Bonus (55) 55 TOTAL SCORE: 1837 Bonus ------- High Alert Combat Kills 48 Follower Combat Kills 7 Cogmind --------- Core Integrity 0/250 Matter 265/300 Energy 81/100 System Corruption 0% Temperature Cool (0) Movement Hovering (56) Location -10/Exiles Parts ------- > --- POWER (1) -------- (None) > --- PROPULSION (2) --- Hover Unit Hover Unit > --- UTILITY (2) ------ Small Storage Unit Propulsion Shielding > --- WEAPON (2) ------- Light Assault Rifle Grenade Launcher > --- INVENTORY (8) ---- Hover Unit Hover Unit Hover Unit Subdweller Optics Hacking Suite Hacking Suite Splice Drone Bay (4/6) Subdweller Machine Gun Peak State ------------ > --- POWER ------------ Light Ion Engine > --- PROPULSION ------- Hover Unit Hover Unit > --- UTILITY ---------- Small Storage Unit Splice Drone Bay > --- WEAPON ----------- Light Assault Rifle Light Assault Rifle > --- INVENTORY -------- Hover Unit Hover Unit Hover Unit Subdweller Optics Hacking Suite Hacking Suite Subdweller Machine Gun Grenade Launcher [Rating: 14] Favorites ----------- Power Light Ion Engine Engine Light Ion Engine Power Core Light Nuclear Core Propulsion Hover Unit Wheel Wheel Hover Unit Hover Unit Utility Small Storage Unit Device Tractor Beam Storage Small Storage Unit Processor Signal Interpreter Protection Propulsion Shielding Weapon Assault Rifle Energy Gun Medium Laser Ballistic Gun Assault Rifle Ballistic Cannon Light Cannon Launcher Grenade Launcher Build | -11 -10 -10 -10 ------- Run | Yrd Mat Min Exi Slots Evolved . | . . . . Power . | . . . . Propulsion . | . . . . Utility . | . . . . Weapon . | . . . . Parts Attached 55 | 11 39 4 1 Power 9 | 1 8 . . Engine 8 | 1 7 . . Core 1 | . 1 . . Reactor . | . . . . Propulsion 12 | 3 9 . . Treads . | . . . . Leg . | . . . . Wheel 4 | 3 1 . . Hover 8 | . 8 . . Flight . | . . . . Utility 13 | 3 7 3 . Device 5 | 2 1 2 . Storage 5 | 1 4 . . Processor 1 | . 1 . . Hackware . | . . . . Protection 2 | . 1 1 . Artifact . | . . . . Weapon 21 | 4 15 1 1 Energy Gun 1 | 1 . . . Energy Cannon . | . . . . Ballistic Gun 14 | 3 10 1 . Ballistic Cannon 1 | . 1 . . Launcher 5 | . 4 . 1 Special Weapon . | . . . . Impact Weapon . | . . . . Slashing Weapon . | . . . . Piercing Weapon . | . . . . Special Melee Weapon . | . . . . Unidentified Prototypes 1 | . . 1 . Parts Lost 5 | . 5 . . Power 1 | . 1 . . Propulsion 1 | . 1 . . Utility 1 | . 1 . . Weapon 2 | . 2 . . Highest Loss Streak 2 | . 2 . . To Critical Strikes . | . . . . Average Slot Usage (%) 95 | . 96 90 85 Engine 6 | . 7 5 . Core 3 | . 4 . . Wheel 8 | . 12 . . Hover 19 | . 15 28 28 Device 5 | . 5 4 . Storage 15 | . 16 14 14 Protection 5 | . 4 8 14 Ballistic Gun 27 | . 27 28 26 Peak Build Rating 14 | 9 10 14 8 Average Rating 8 | 5 8 10 8 On Entrance 5 | . 7 8 8 Naked Turns . | . . . . Heaviest Build 18 | 12 16 18 11 Greatest Support 26 | 26 20 12 12 Greatest Overweight (x) 1 | . 1 1 . Average Overweight (x) . | . . . . Largest Inventory Capacity 8 | 8 8 8 8 Average Capacity 7 | 7 8 8 8 Most Carried 8 | 4 8 8 8 Average Carried 7 | 1 7 7 8 Final Capacity 8 | 8 8 8 8 Final Carried 8 | 4 8 8 8 Class Distribution -------------------- 100% | Mutant Dominant Class ---------------- Mutant | -10/Materials Mutant | -10/Mines Mutant | -10/Exiles Resources | -11 -10 -10 -10 ----------- Run | Yrd Mat Min Exi Matter Collected 1520 | 366 1047 107 . Remotely 343 | 124 219 . . Salvage Created 1692 | 216 1226 250 . Parts 142 | 19 120 3 . Haulers Intercepted 2 | . 2 . . Recyclers Shooed 1 | . 1 . . Parts Field Recycled . | . . . . Retrieved Matter . | . . . . Parts Self-Destructed . | . . . . Prevented . | . . . . Kills | -11 -10 -10 -10 ------- Run | Yrd Mat Min Exi Combat Hostiles Destroyed 25 | . 25 . . Guns 12 | . 12 . . Cannons 1 | . 1 . . AOE 12 | . 12 . . Classes Destroyed 10 | 2 8 . . Worker 11 | . 11 . . Builder 7 | . 7 . . Tunneler 5 | 5 . . . Hauler 2 | . 2 . . Recycler 3 | 1 1 1 . Operator 1 | . 1 . . Watcher 3 | . 3 . . Swarmer 12 | . 12 . . Grunt 11 | . 11 . . Subdweller 2 | . 2 . . Best Kill Streak 10 | 4 10 1 . Combat Bots Only 8 | . 8 . . Max Kills in Single Turn 4 | 1 4 1 . Gunslinging . | . . . . Exploded 3 | . 3 . . Melee . | . . . . Uniques/NPCs Destroyed . | . . . . Combat | -11 -10 -10 -10 -------- Run | Yrd Mat Min Exi Hostile Shots Fired 91 | . 91 . . Missed 35 | . 35 . . Damage Taken 845 | . 785 . 60 Core 257 | . 247 . 10 Absorbed by Shields . | . . . . Redirected to Shielding 19 | . 16 . 3 Core Remaining (%) 100 | 100 . . . Volleys Fired 145 | 14 116 13 2 Largest 2 | 2 2 2 2 Hottest 55 | 40 55 50 50 Shots Fired 290 | 28 232 26 4 Gun 278 | 28 222 26 2 Cannon 3 | . 3 . . Launcher 9 | . 7 . 2 Special . | . . . . Kinetic 281 | 28 225 26 2 Thermal . | . . . . Explosive 9 | . 7 . 2 Electromagnetic . | . . . . Robot Hit Streak 16 | 10 16 10 . Robot Miss Streak 3 | 3 3 2 . Penetration Max . | . . . . Secondary Targets 1 | . 1 . . Max Gunslinging Chain 1 | . 1 . . Shots Hit Robots 173 | 18 140 15 . Core Hits 85 | 8 73 4 . Critical Kills . | . . . . Critical Parts Destroyed 1 | . 1 . . Critical Strikes 1 | . 1 . . Destroy 1 | . 1 . . Melee Attacks . | . . . . Impact . | . . . . Slashing . | . . . . Piercing . | . . . . Sneak Attacks . | . . . . Combat Hostiles . | . . . . Follow-up Attacks . | . . . . Damage Inflicted 2854 | 205 2434 215 . Guns 2187 | 205 1767 215 . Cannons 33 | . 33 . . Explosions 634 | . 634 . . Melee . | . . . . Ramming . | . . . . Kinetic 2220 | 205 1800 215 . Thermal . | . . . . Explosive 634 | . 634 . . Electromagnetic . | . . . . Impact . | . . . . Slashing . | . . . . Piercing . | . . . . Highest Corruption . | . . . . Average Corruption . | . . . . Corruption Purged . | . . . . Corruption Blocked . | . . . . Overload Shots . | . . . . Overflow Damage . | . . . . Projectiles . | . . . . Explosions . | . . . . Melee . | . . . . Knockbacks 1 | . 1 . . Impact . | . . . . Kinetic 1 | . 1 . . Secondary . | . . . . Self-Inflicted Damage 104 | . 32 . 72 Shots 5 | . 3 . 2 Rammed . | . . . . Targets Rammed . | . . . . Kicked . | . . . . Crushed . | . . . . Highest Temperature 340 | . 340 8 4 Average Temperature 49 | . 58 3 3 Received Heat Transfer 559 | . 559 . . Effects 1 | . 1 . . Damage (minor) 1 | . 1 . . Siege Activations . | . . . . Robots Corrupted . | . . . . Combat Hostiles . | . . . . Parts Fried . | . . . . Impact Corruptions . | . . . . Robots Melted . | . . . . Combat Hostiles . | . . . . Parts Melted . | . . . . Heat Transferred . | . . . . Parts Sabotaged . | . . . . Parts Stolen . | . . . . Parts Stripped . | . . . . Power Chain Reactions . | . . . . Alert | -11 -10 -10 -10 ------- Run | Yrd Mat Min Exi Peak Influence 524 | 30 524 276 . Initial 204 | . 19 204 . Average 228 | 10 238 256 . Maximum Alert Level 2 | . 2 1 . Low Security (%) 45 | 100 53 . . Level 1 37 | . 22 100 . Level 2 17 | . 23 . . Level 3 . | . . . . Level 4 . | . . . . Level 5 . | . . . . High Security . | . . . . Max Security . | . . . . Squads Dispatched 5 | . 5 . . Investigation 4 | . 4 . . Extermination . | . . . . Reinforcement 1 | . 1 . . Assault . | . . . . Garrison . | . . . . Intercept . | . . . . Searches Triggered . | . . . . Construction Impeded . | . . . . Haulers Reinforced . | . . . . Active Scanning Responses . | . . . . Cargo Convoy Interrupts . | . . . . Stealth | -11 -10 -10 -10 --------- Run | Yrd Mat Min Exi Distress Signals 1 | . 1 . . Communications Jammed . | . . . . Distress Signals . | . . . . Times Spotted 34 | . 31 3 . Peak Tracking Total 8 | . 8 3 . Tactical Retreats 1 | . 1 . . Traps | -11 -10 -10 -10 ------- Run | Yrd Mat Min Exi Traps Triggered 3 | . 3 . . Indirectly . | . . . . Trap Hack Attempts . | . . . . Triggered . | . . . . Disarmed . | . . . . Reprogrammed 3 | . 3 . . Reused 1 | . 1 . . Traps Extracted . | . . . . Installed . | . . . . Triggered 1 | . 1 . . Machines | -11 -10 -10 -10 ---------- Run | Yrd Mat Min Exi Machines Disabled 2 | . 1 . 1 Max in Single Turn 1 | . 1 . 1 Machines Repaired . | . . . . Machines Dismantled . | . . . . Machines Sabotaged . | . . . . Overloaded Fab Kills . | . . . . Hacking | -11 -10 -10 -10 --------- Run | Yrd Mat Min Exi Machines Accessed 8 | . 7 1 . Terminals 7 | . 7 . . Fabricators . | . . . . Repair Stations . | . . . . Recycling Units . | . . . . Scanalyzers . | . . . . Garrison Access . | . . . . Total Hacks 31 | . 30 1 . Successful 13 | . 12 1 . Failed 17 | . 17 . . Catastrophic 2 | . 2 . . Database Lockouts 1 | . 1 . . Manual 23 | . 23 . . Terminals 30 | . 30 . . Fabricators . | . . . . Repair Stations . | . . . . Recycling Units . | . . . . Scanalyzers . | . . . . Garrison Access . | . . . . Terminal Hacks 13 | . 12 1 . Robot Analysis 8 | . 8 . . Prototype ID Bank 3 | . 3 . . Open Door 1 | . . 1 . Reprogram Traps 1 | . 1 . . Fabricator Hacks . | . . . . Repair Station Hacks . | . . . . Recycling Unit Hacks . | . . . . Scanalyzer . | . . . . Garrison Access Hacks . | . . . . Unauthorized Hacks . | . . . . Terminals . | . . . . Fabricators . | . . . . Repair Stations . | . . . . Recycling Units . | . . . . Scanalyzers . | . . . . Garrison Access . | . . . . Data Cores Recovered . | . . . . Used . | . . . . Hacking Detections 7 | . 7 . . Full Trace Events 6 | . 6 . . Feedback Events . | . . . . Feedback Blocked . | . . . . Robot Schematics Acquired . | . . . . Robots Built . | . . . . Authchips . | . . . . Time . | . . . . Total Robot Build Rating . | . . . . Part Schematics Acquired . | . . . . Parts Built . | . . . . Authchips . | . . . . Time . | . . . . Total Part Build Rating . | . . . . Parts Repaired . | . . . . Time . | . . . . Parts Recycled . | . . . . Recycled Matter . | . . . . Retrieved Matter . | . . . . Retrieved Components . | . . . . Parts Scanalyzed . | . . . . Part Schematics Acquired . | . . . . Parts Damaged . | . . . . Bothacking | -11 -10 -10 -10 ------------ Run | Yrd Mat Min Exi Used RIF Installer . | . . . . Robots Hacked . | . . . . Non-combat . | . . . . Combat . | . . . . Robot Hacks Applied . | . . . . Relay Couplers Released . | . . . . Fabnet Peak Effective % . | . . . . Robots Rewired . | . . . . Allies Hacked . | . . . . Hacks Repelled . | . . . . Allies | -11 -10 -10 -10 -------- Run | Yrd Mat Min Exi Total Allies 1 | . . 1 . Largest Group 1 | . . 1 1 Highest-Rated Group 31 | . . 31 31 Highest-Rated Ally 31 | . . 31 31 Total Orders 7 | . . 7 . EXPLORE 6 | . . 6 . RETURN 1 | . . 1 . Ally Attacks 14 | . . 14 . Total Damage 56 | . . 56 . Kills 2 | . . 2 . Allies Corrupted . | . . . . Allies Melted . | . . . . Intel | -11 -10 -10 -10 ------- Run | Yrd Mat Min Exi Robot Analysis Total 8 | . 8 . . Derelict Logs Recovered 1 | . . 1 . Drone Launches 18 | . . 18 . Drone Recoveries 16 | . . 16 . Exploration | -11 -10 -10 -10 ------------- Run | Yrd Mat Min Exi Turns Passed 1559 | 91 1093 312 63 Spaces Moved 1367 | 40 957 266 104 Core 1 | 1 . . . Treads . | . . . . Legs . | . . . . Wheels 377 | 39 338 . . Hover 989 | . 619 266 104 Flight . | . . . . Fastest Speed 50 | 50 56 56 56 Average Speed 66 | 85 69 57 56 Slowest Speed 116 | 90 116 116 56 Overloaded Moves . | . . . . Propulsion Burnouts . | . . . . Robots Hopped . | . . . . Cave-ins Triggered . | . . . . Exploration Rate (%) 59 | 4 98 98 39 Regions Visited 3 Branch Regions 2 Pre-discovered Areas . | . . . . Known Exits Taken . | . . . . Unknown Exits Taken 3 | 1 1 1 . Scrap Searched 1 | . . 1 . Spaces Dug . | . . . . Terrain Destroyed 49 | . 48 . 1 Melee . | . . . . Projectile . | . . . . AOE 49 | . 48 . 1 Terrain Rammed . | . . . . Walls Destroyed . | . . . . Machines Disabled . | . . . . Actions | -11 -10 -10 -10 --------- Run | Yrd Mat Min Exi Total 1738 | 66 1163 402 107 Wait 117 | . 3 114 . Move 1364 | 39 956 265 104 Hop . | . . . . Pick Up 19 | 1 17 1 . Fast Attach 24 | 8 14 2 . Attach 5 | . 4 1 . Detach 6 | 1 4 1 . Swap 26 | 3 21 1 1 Drop 32 | . 28 4 . Fire 145 | 14 116 13 2 Melee . | . . . . Ram . | . . . . Kick . | . . . . Crush . | . . . . Escape Stasis . | . . . . Rewire . | . . . . Trap . | . . . . Miscellaneous . | . . . . Route ------- -11/Scrapyard -10/Materials (discovered 5 exits: [*Mat x3] / *Min / *Sub) -10/Mines (discovered 3 exits: [*Mat x2] / *Exi) -10/Exiles History --------- Turn | Location | Event 12 | -11/Scrapyard | Discovered new exit (range 13) 92 | -11/Scrapyard | Entered Materials 322 | -10/Materials | Build established: Mutant 412 | -10/Materials | Discovered new exit (range 15) 553 | -10/Materials | Discovered new exit (range 8) 589 | -10/Materials | Identified exit to Subcaves 608 | -10/Materials | Discovered new exit (range 16) 792 | -10/Materials | Derelicts attacked the area 816 | -10/Materials | Discovered new exit (range 16) 869 | -10/Materials | Central database locked down 907 | -10/Materials | Discovered new exit (range 16) 918 | -10/Materials | Destroyed 8 combat bots 940 | -10/Materials | Core integrity fell below 50% 1045 | -10/Materials | Core integrity fell below 20% 1185 | -10/Materials | Entered Mines 1186 | -10/Mines | Met a Derelict bent on vengeance 1188 | -10/Mines | Found the Drone Emporium 1191 | -10/Mines | Found Prototype Device 1191 | -10/Mines | Identified Splice Drone Bay 1238 | -10/Mines | Discovered new exit (range 46) 1257 | -10/Mines | Discovered new exit (range 69) 1437 | -10/Mines | Learned 4 Materials zone layouts 1484 | -10/Mines | Received a Mining Laser from a helpful Derelict 1491 | -10/Mines | Deemed a non-threat by the Exiles lab entrance 1491 | -10/Mines | Discovered new exit (range 5) 1497 | -10/Mines | Entered Exiles 1497 | -10/Exiles | Found Exiles lab abandoned 1497 | -10/Exiles | Accompanied by 1 ally 1560 | -10/Exiles | Destroyed self with Grenade Launcher Last Messages --------------- 01455_ Searching scrap... 01455_ Found Datajack. 01455_ Found Sml. Laser. 01455_ Found Lgt. Ion Engine. 01455_ Found Targeting Computer. 01455_ Found 37 Matter. 01462_ K-01 Serf cleans the Core Extractor. 01482_ A derelict emerges from the shadows: "What are you doing alone down here?" 01484_ FT-FQ3(g): "And why aren't you carrying a mining laser?! Certainly you don't want THEM to uncover you when the ceiling comes crashing down? Here, take my spare." 01487_ FT-FQ3(g): "You're apparently new around these parts, I'll cover you." 01489_ FT-FQ3(g): "Mining lasers are a lot more useful than you might think..." 01491_ "No threat detected, you may enter." 01491_ EXIT=FOUND LOCATION=UNKNOWN GOAL=ESCAPE 01555_ Connecting with EX-Prototypes Database... 01555_ Current location identified: Exiles 01557_ EX-Prototypes Database disabled. Map ----- +----------------------------------------------------+ | | | | | | | | | | | | | | | | | | | | | | | | | | | | | | | | | | | | | | | | | | | | | | | ?????????????????????####?####???????????????????? | | ?????????????????????# # #???????????????????? | | ?????????????????????# @ #???????????????????? | | ?????????????????????# #???????????????????? | | ?????????????????????# #???????????????????? | | ?????????????????????## ##???????????????????? | | ?????????????????????#X #???????????????????? | | ?????????????????????## ##???????????????????? | | ??????????????????????# #????????????????????? | | ??????????????????????# #???###??????????????? | | ??????????????????????# #??"""""?????????????? | | ??????????????????????# ## """?????????????? | | ??????????????????????# X""?????????????? | | ??????????????????????# ## """?????????????? | | ????????????????####??# #??"""""?????????????? | | ????????????????"""""?# #???###??????????????? | | ???????????????"""" ## #????????????????????? | | ??????????????#""X" #????????????????????? | | ??????????????#" #????????????????????? | | ??????????????#" ## #????????????????????? | | ??????????????#""""""?# #????????????????????? | | ???????????????#"###??# #????????????????????? | | ??????????????????????# #???""""?????????????? | | ??????????????????????# #??""""""????????????? | | ?????????????????????## ###"" """????????????? | | ?????????????????????#" """"???????????? | | ?????????????????????#" """???????????? | +----------------------------------------------------+ Best States ------------- Heat Dissipation 25 Energy Generation 14 Energy Capacity 160 Matter Stores 400 Matter Capacity 400 Sight Range 16 Terrain Scan Range 16 Terrain Scan Density 10 Propulsion Shielding 33 Evasion (%) 53 Item Schematics ----------------- None Robot Schematics ------------------ None Fabricated ------------ Nothing Alien Tech Used ----------------- None Achievements -------------- None Challenges ------------ None Game ------ Seed ProjectionNuclearSabre Manual? 0 Play Time 00:18:23 Cumulative 495.1 hours Start 2024.10.08 @ 21:50:52 End 2024.10.08 @ 22:08:44 Sessions 1 Manual Loads 0 Difficulty Rogue Special Mode None Game No. 199 Rogue 199 Adventurer 0 Explorer 0 Win Type - Total 4 Types 0/0/2/2/0/0/0/0/0 Lore% 48 Gallery% 76 Achievement% 66 Wizard Run 0 Options --------- Layout 0 ASCII 0 Keyboard 1 Movement Arrows Keybinds 0 Fullscreen 1 Font 12/Proggy Map View 83x54 Zoom Use 0% Tactical HUD 1 Map Filters NONE Filters NONE Steam 0 RUN: 6273bee4-fdc8-48f3-83ec-ed4957dd38cd